bitfinex/quotes_SOLUSD_20250102
["timestamp","ask_amount","ask_price","bid_price","bid_amount"]
[1735776861595,0.96662525,194.0,193.94,6.4808]
[1735776862490,0.96662437,194.01,193.94,6.4808]
[1735776862990,23.776884,194.02,193.94,6.4808]
[1735776864192,6.11961978,194.06,193.94,6.4808]
[1735776864388,23.776884,194.05,193.94,6.4808]
[1735776865586,5.1519,194.1,193.96,10.24326433]
[1735776865766,0.96617575,194.09,193.96,10.24326433]
[1735776866081,23.776884,194.08,193.96,10.24326433]
[1735776869575,23.776884,194.08,193.98,20.0]
[1735776873377,5.1519,194.1,194.0,1.5854]
[1735776873591,6.11742086,194.13,194.0,1.5854]
[1735776873776,20.0,194.1,194.0,11.82866433]
[1735776874694,5.1512,194.13,194.02,10.24326433]
[1735776874882,5.1504,194.16,194.03,7.8766]
[1735776875208,20.0,194.13,194.03,7.8766]
[1735776875873,0.96587495,194.15,194.03,7.8766]
[1735776876402,20.0,194.13,194.03,7.8766]
[1735776880607,5.1504,194.16,194.03,7.8766]
[1735776880816,23.776884,194.15,194.04,15.24326433]
[1735776881978,2.60579011,194.19,194.07,1.5706]
[1735776882220,0.9656606,194.2,194.08,6.306]
[1735776882386,6.1140606,194.24,194.1,15.24326433]
[1735776882709,20.0,194.21,194.1,10.24326433]
[1735776883206,23.776884,194.23,194.1,10.24326433]
[1735776886684,23.776884,194.23,194.11,10.24326433]
[1735776887091,5.1474,194.27,194.11,15.24326433]
[1735776887414,20.0,194.24,194.12,18.11986433]
[1735776888108,23.776884,194.23,194.12,18.11986433]
[1735776888910,5.1474,194.27,194.15,20.0]
[1735776889113,0.96531511,194.26,194.14,10.24326433]
[1735776889512,6.11272181,194.27,194.14,10.24326433]
[1735776889820,6.11272181,194.27,194.15,1.627]
[1735776890613,24.74218587,194.26,194.15,1.627]
[1735776893203,23.776884,194.26,194.16,6.4558]
[1735776896226,23.776884,194.26,194.16,6.4558]
[1735776900422,5.1467,194.3,194.2,20.0]
[1735776900627,0.96507948,194.33,194.22,6.1876]
[1735776900925,6.11097948,194.33,194.22,6.1876]
[1735776901323,23.776884,194.32,194.22,6.1876]
[1735776901528,23.776884,194.3,194.22,6.1876]
[1735776901824,23.776884,194.28,194.22,6.1876]
[1735776902130,23.776884,194.26,194.22,6.1876]
[1735776902426,23.776884,194.27,194.22,6.1876]
[1735776902632,24.74214378,194.27,194.21,1.5139]
[1735776903229,24.74214378,194.27,194.17,6.1876]
[1735776903923,23.776884,194.25,194.17,6.1876]
[1735776904146,24.74227248,194.25,194.17,6.1876]
[1735776904300,23.776884,194.25,194.17,6.1876]
[1735776905828,0.96538313,194.29,194.17,6.1876]
[1735776906125,23.776884,194.28,194.17,16.43086433]
[1735776906420,5.1467,194.3,194.19,11.82276433]
[1735776906644,0.96515346,194.32,194.19,11.82276433]
[1735776906645,5.1459,194.33,194.22,20.0]
[1735776906802,5.1459,194.33,194.24,6.0649]
[1735776908426,5.1459,194.33,194.25,1.5795]
[1735776908427,23.776884,194.32,194.25,1.5795]
[1735776908811,20.0,194.34,194.25,1.5795]
[1735776909009,20.9649148,194.34,194.25,1.5795]
[1735776909211,23.776884,194.33,194.25,1.5795]
[1735776909523,0.96506295,194.32,194.25,1.5795]
[1735776909723,24.74189436,194.33,194.25,1.5795]
[1735776910533,5.1461,194.32,194.25,1.5795]
[1735776911432,23.776884,194.3,194.25,1.5795]
[1735776911634,23.776884,194.28,194.25,1.5795]
[1735776912120,23.776884,194.26,194.2,1.5795]
[1735776912503,0.96529797,194.25,194.2,1.5795]
[1735776912699,23.776884,194.28,194.2,1.5795]
[1735776912898,23.776884,194.26,194.2,1.5795]
[1735776913118,0.96536558,194.25,194.2,1.5795]
[1735776913942,28.924784,194.26,194.2,1.5795]
[1735776914232,0.96532572,194.25,194.2,1.5795]
[1735776914447,28.924784,194.26,194.2,1.5795]
[1735776914607,5.1469,194.29,194.2,1.5795]
[1735776915239,23.776884,194.28,194.2,1.5795]
[1735776915632,25.1469,194.29,194.2,1.5795]
[1735776915633,5.1456,194.34,194.2,1.5795]
[1735776915807,0.96506616,194.33,194.2,11.82276433]
[1735776916007,23.776884,194.32,194.22,20.0]
[1735776916236,23.776884,194.3,194.22,20.0]
[1735776917154,24.74201995,194.3,194.22,20.0]
[1735776917806,5.1469,194.29,194.2,1.5795]
[1735776918030,0.96513661,194.28,194.2,1.5795]
[1735776918233,5.1469,194.29,194.2,1.5795]
[1735776919222,20.0,194.32,194.2,1.5795]
[1735776919655,23.776884,194.3,194.2,1.5795]
[1735776920248,6.11154581,194.31,194.2,1.5795]
[1735776920543,23.776884,194.3,194.2,1.5795]
[1735776920844,0.96511702,194.29,194.2,1.5795]
[1735776921335,24.74206256,194.3,194.2,1.5795]
[1735776921640,23.776884,194.28,194.2,1.5795]
[1735776921815,0.96531136,194.27,194.2,1.5795]
[1735776922334,23.776884,194.26,194.2,1.5795]
[1735776922714,0.96530033,194.26,194.2,1.5795]
[1735776922917,24.74218433,194.26,194.2,1.5795]
[1735776923630,23.776884,194.25,194.2,1.5795]
[1735776923932,0.96537611,194.24,194.2,1.5795]
[1735776924832,0.96537611,194.24,194.19,6.0649]
[1735776925013,0.96537611,194.24,194.16,1.5819]
[1735776928229,23.776884,194.23,194.16,1.5819]
[1735776928536,0.96551619,194.22,194.16,1.5819]
[1735776928723,5.148,194.25,194.16,1.5819]
[1735776928927,23.776884,194.23,194.16,1.5819]
[1735776929838,5.148,194.25,194.16,1.5819]
[1735776930155,23.776884,194.23,194.16,1.5819]
[1735776931321,23.776884,194.21,194.16,1.5819]
[1735776931521,0.96562814,194.2,194.16,1.5819]
[1735776932840,23.776884,194.19,194.08,7.8417]
[1735776933040,23.776884,194.19,194.11,20.0]
[1735776936448,5.1485,194.23,194.11,20.0]
[1735776936744,0.96551403,194.22,194.11,1.5406]
[1735776937040,23.776884,194.21,194.12,20.0]
[1735776937652,23.776884,194.22,194.12,20.0]
[1735776938750,6.11322976,194.26,194.12,6.4363]
[1735776939048,23.776884,194.25,194.13,20.0]
[1735776939241,23.776884,194.23,194.13,20.0]
[1735776939649,23.776884,194.23,194.12,6.4363]
[1735776941550,0.96542347,194.26,194.17,20.0]
[1735776941744,0.96525945,194.28,194.17,20.0]
[1735776941947,0.96525945,194.28,194.18,7.9769]
[1735776942829,5.1469,194.29,194.18,7.9769]
[1735776943032,23.776884,194.28,194.18,7.9769]
[1735776944338,20.0,194.3,194.18,23.9409672]
[1735776944654,5.1458,194.33,194.18,23.9409672]
[1735776944655,5.1458,194.33,194.21,37.5046672]
[1735776944828,0.96501199,194.32,194.21,37.5046672]
[1735776945436,23.776884,194.31,194.21,37.5046672]
[1735776945657,23.776884,194.31,194.21,21.5406]
[1735776945842,23.776884,194.32,194.21,21.5406]
[1735776946042,24.74189226,194.32,194.21,21.5406]
[1735776946463,20.0,194.33,194.22,6.4363]
[1735776947138,20.0,194.33,194.22,16.64539616]
[1735776947570,23.776884,194.32,194.22,16.64539616]
[1735776947746,5.89274472,194.38,194.24,1.5406]
[1735776947945,0.96478972,194.37,194.25,20.0]
[1735776948265,23.776884,194.36,194.25,20.0]
[1735776948427,0.96476721,194.39,194.25,20.0]
[1735776948633,0.96476721,194.39,194.26,6.1456]
[1735776948859,0.96476721,194.39,194.28,10.20909616]
[1735776949064,0.96469916,194.41,194.3,20.0]
[1735776949265,23.776884,194.42,194.3,20.0]
[1735776949470,23.776884,194.4,194.3,20.0]
[1735776949676,20.0,194.41,194.3,20.0]
[1735776949842,0.96461272,194.4,194.3,20.0]
[1735776950237,0.96461272,194.4,194.29,20.0]
[1735776950871,23.776884,194.39,194.29,20.0]
[1735776951042,23.776884,194.37,194.29,20.0]
[1735776951562,25.1438,194.41,194.29,20.0]
[1735776952267,23.776884,194.4,194.29,20.0]
[1735776952478,24.74142666,194.4,194.29,20.0]
[1735776954060,5.1442,194.39,194.27,1.5661]
[1735776954358,23.776884,194.37,194.27,1.5661]
[1735776954737,23.776884,194.35,194.27,1.5661]
[1735776954935,23.776884,194.37,194.27,1.5661]
[1735776955160,23.776884,194.35,194.27,1.5661]
[1735776955743,24.74173534,194.35,194.27,1.5661]
[1735776955941,20.0,194.38,194.27,1.5661]
[1735776956168,23.776884,194.36,194.27,1.5661]
[1735776956458,0.96485008,194.37,194.27,1.5661]
[1735776956871,23.776884,194.36,194.27,1.5661]
[1735776958141,5.1447,194.38,194.27,1.5661]
[1735776958349,24.74160987,194.37,194.27,1.5661]
[1735776959068,23.776884,194.37,194.27,1.5661]
[1735776960361,20.0,194.4,194.27,1.5661]
[1735776961979,0.96461649,194.41,194.29,1.5661]
[1735776962175,23.776884,194.38,194.29,1.5661]
[1735776965859,5.1437,194.42,194.29,1.5661]
[1735776966063,0.96460948,194.44,194.32,20.0]
[1735776966750,0.96460948,194.44,194.33,20.0]
[1735776967060,23.776884,194.43,194.33,20.0]
[1735776967267,23.776884,194.41,194.29,1.5661]
[1735776967449,23.776884,194.39,194.29,21.5661]
[1735776967656,23.776884,194.39,194.31,20.0]
[1735776967854,23.776884,194.41,194.31,20.0]
[1735776969166,0.96456856,194.4,194.31,20.0]
[1735776969360,23.776884,194.4,194.31,20.0]
[1735776969959,23.776884,194.4,194.29,1.5661]
[1735776970161,0.96460791,194.39,194.29,1.5661]
[1735776970353,0.96460791,194.39,194.36,5.0]
[1735776970573,0.96417959,194.52,194.36,27.9926]
[1735776970773,20.96417959,194.52,194.36,27.9926]
[1735776971280,23.776884,194.48,194.36,7.9926]
[1735776971454,23.776884,194.46,194.36,7.9926]
[1735776971653,6.10609772,194.49,194.36,12.9926]
[1735776971880,5.1417,194.49,194.36,12.9926]
[1735776972056,23.776884,194.48,194.39,20.0]
[1735776972255,23.776884,194.48,194.36,7.9926]
[1735776972462,23.776884,194.46,194.36,7.9926]
[1735776972870,0.96431542,194.45,194.36,7.9926]
[1735776973180,43.776884,194.46,194.36,7.9926]
[1735776973381,23.776884,194.43,194.36,7.9926]
[1735776973571,24.74137294,194.43,194.36,7.9926]
[1735776974861,24.74137294,194.43,194.32,6.3412]
[1735776975380,23.776884,194.43,194.32,6.3412]
[1735776978215,24.74128798,194.43,194.32,6.3412]
[1735776978567,23.776884,194.43,194.32,6.3412]
[1735776979286,23.776884,194.41,194.32,6.3412]
[1735776979794,23.776884,194.42,194.32,6.3412]
[1735776980604,23.776884,194.43,194.32,6.3412]
[1735776980968,0.96446767,194.42,194.32,6.3412]
[1735776983595,23.776884,194.4,194.32,6.3412]
[1735776983771,0.96470268,194.39,194.32,6.3412]
[1735776984170,0.96470268,194.39,194.31,1.6514]
[1735776984171,23.776884,194.37,194.31,1.6514]
[1735776984378,0.96482764,194.36,194.31,1.6514]
[1735776986197,28.922184,194.35,194.27,7.8882]
[1735776986375,23.776884,194.33,194.22,6.329]
[1735776986573,23.776884,194.31,194.22,7.8882]
[1735776986786,23.776884,194.29,194.22,7.8882]
[1735776986990,20.0,194.32,194.22,7.8882]
[1735776987177,23.776884,194.29,194.22,7.8882]
[1735776987698,5.1465,194.31,194.22,7.8882]
[1735776988000,23.776884,194.29,194.22,7.8882]
[1735776988203,0.96518522,194.28,194.22,7.8882]
[1735776988802,23.776884,194.27,194.22,7.8882]
[1735776989808,0.96526157,194.26,194.22,7.8882]
[1735776990020,0.96526157,194.26,194.11,5.0]
[1735776990021,23.776884,194.25,194.17,7.8882]
[1735776990696,0.96526157,194.26,194.17,7.8882]
[1735776990903,23.776884,194.26,194.17,7.8882]
[1735776991201,0.96535337,194.25,194.17,7.8882]
[1735776992010,0.96535853,194.26,194.17,7.8882]
[1735776995301,23.776884,194.24,194.17,7.8882]
[1735776995510,0.9655266,194.23,194.17,7.8882]
[1735776996305,20.0,194.22,194.17,7.8882]
[1735776996487,0.96555972,194.21,194.17,7.8882]
[1735776997103,20.0,194.22,194.17,7.8882]
[1735776997305,0.96552373,194.21,194.17,7.8882]
[1735776998013,20.0,194.22,194.17,7.8882]
[1735776998400,0.96552354,194.21,194.17,7.8882]
[1735776998711,23.776884,194.2,194.1,1.6124]
[1735776998907,0.96552687,194.19,194.1,1.6124]
[1735776999105,5.1493,194.2,194.1,21.6124]
[1735776999417,5.1493,194.2,194.1,1.6124]
[1735777000196,0.96558359,194.21,194.1,1.6124]
[1735777000400,20.96558359,194.21,194.1,1.6124]
[1735777001513,0.96558359,194.21,194.11,6.0708]
[1735777003012,0.96558359,194.21,194.12,33.98598016]
[1735777003225,0.96561122,194.28,194.14,10.20909616]
[1735777003704,0.96561122,194.28,194.15,30.20909616]
[1735777003909,5.1471,194.29,194.15,30.20909616]
[1735777004085,23.776884,194.27,194.15,30.20909616]
[1735777004289,0.96529968,194.26,194.15,30.20909616]
[1735777004585,5.1471,194.29,194.15,30.20909616]
[1735777004586,5.1471,194.29,194.17,11.85089616]
[1735777004786,23.776884,194.27,194.17,1.6418]
[1735777005090,28.924984,194.25,194.17,1.6418]
[1735777005291,0.96546419,194.24,194.17,1.6418]
[1735777005903,23.776884,194.23,194.17,1.6418]
[1735777006100,20.9655174,194.22,194.17,1.6418]
[1735777006738,23.776884,194.21,194.17,1.6418]
[1735777006918,0.96562978,194.2,194.1,7.7126]
[1735777007122,23.776884,194.19,194.1,7.7126]
[1735777007428,23.776884,194.17,194.1,7.7126]
[1735777007600,5.1495,194.19,194.1,7.7126]
[1735777007601,23.776884,194.15,194.1,7.7126]
[1735777007803,0.96592099,194.14,194.1,7.7126]
[1735777008606,5.1495,194.19,194.1,7.7126]
[1735777008811,0.96571053,194.21,194.1,7.7126]
[1735777009029,23.776884,194.19,194.1,7.7126]
[1735777009235,24.74257747,194.19,194.1,7.7126]
[1735777013044,0.96569347,194.19,194.1,7.7126]
[1735777017249,0.96568826,194.24,194.1,7.7126]
[1735777017817,23.776884,194.21,194.1,7.7126]
[1735777018144,20.0,194.22,194.11,15.974105]
[1735777020026,20.0,194.22,194.1,7.7126]
[1735777020027,20.0,194.22,194.1,23.686705]
[1735777020224,24.74236336,194.21,194.1,7.7126]
[1735777020737,23.776884,194.2,194.1,7.7126]
[1735777020929,0.96570223,194.19,194.1,7.7126]
[1735777021312,23.776884,194.18,194.1,7.7126]
[1735777021549,23.776884,194.16,194.1,7.7126]
[1735777021848,0.96592488,194.15,194.1,7.7126]
[1735777022417,23.776884,194.14,194.1,1.6418]
[1735777022623,0.96592488,194.15,194.05,6.231]
[1735777022624,0.96599756,194.13,194.05,6.231]
[1735777022826,0.96599756,194.13,194.05,7.8783]
[1735777023713,23.776884,194.13,194.05,7.8783]
[1735777024047,0.96599167,194.12,194.05,7.8783]
[1735777026211,23.776884,194.13,194.05,7.8783]
[1735777026413,0.96608692,194.13,194.05,7.8783]
[1735777027965,0.96598563,194.17,194.05,7.8783]
[1735777028115,23.776884,194.16,194.05,7.8783]
[1735777028319,0.96593452,194.15,194.05,7.8783]
[1735777029645,0.96579226,194.18,194.1,20.0]
[1735777029824,5.1488,194.22,194.1,20.0]
[1735777029825,0.9657234,194.21,194.1,20.0]
[1735777030352,0.9657234,194.21,194.11,20.0]
[1735777031038,0.9657234,194.21,194.09,15.974105]
[1735777031363,23.776884,194.2,194.09,15.974105]
[1735777031659,0.9656902,194.19,194.1,20.0]
[1735777032239,23.776884,194.18,194.05,7.8783]
[1735777032422,81.5,194.23,194.05,7.8783]
[1735777032423,23.776884,194.16,194.05,7.8783]
[1735777032628,23.776884,194.14,194.05,7.8783]
[1735777032840,0.96603572,194.13,194.05,7.8783]
[1735777034546,23.776884,194.12,194.0,8.1701]
[1735777034864,23.776884,194.1,194.0,8.1701]
[1735777035148,23.776884,194.08,194.0,8.1701]
[1735777035354,23.776884,194.06,193.98,8.11216647]
[1735777035561,5.1517,194.11,193.95,46.20804859]
[1735777035562,23.776884,194.04,193.95,16.28226647]
[1735777035751,0.96649339,194.03,193.95,16.28226647]
[1735777036445,0.96649339,194.03,193.95,8.1701]
[1735777036965,23.776884,194.02,193.95,8.1701]
[1735777037259,0.96665219,194.01,193.95,8.1701]
[1735777037563,0.96665219,194.01,193.91,8.11216647]
[1735777037564,23.776884,194.0,193.91,8.11216647]
[1735777037725,0.96670727,193.99,193.91,8.11216647]
[1735777038124,0.96670727,193.99,193.9,16.28226647]
[1735777039368,23.776884,193.98,193.9,16.28226647]
[1735777039663,0.96682326,193.97,193.9,8.1701]
[1735777040342,0.96682326,193.97,193.85,24.126805]
[1735777040545,23.776884,193.96,193.85,8.1527]
[1735777040745,0.96696888,193.95,193.85,8.1527]
[1735777040941,23.776884,193.94,193.85,8.1527]
[1735777041151,0.96701016,193.93,193.85,8.1527]
[1735777042380,0.96699176,193.97,193.85,8.1527]
[1735777042536,0.9669745,193.96,193.85,8.1527]
[1735777042730,23.776884,193.95,193.85,8.1527]
[1735777042931,0.96694699,193.94,193.85,8.1527]
[1735777043433,23.776884,193.93,193.85,8.1527]
[1735777043651,0.96704179,193.92,193.85,8.1527]
[1735777043859,23.776884,193.96,193.85,8.1527]
[1735777044057,0.96688754,193.95,193.85,24.126805]
[1735777044243,0.96681245,193.98,193.86,15.974105]
[1735777044428,0.96681245,193.98,193.88,15.974105]
[1735777044628,0.96671031,194.05,193.88,15.974105]
[1735777044939,0.96671031,194.05,193.89,15.974105]
[1735777045286,23.776884,194.02,193.89,15.974105]
[1735777045465,23.776884,194.0,193.88,35.974105]
[1735777045631,0.96672473,193.99,193.89,15.974105]
[1735777045834,0.96672374,193.99,193.9,15.974105]
[1735777046052,0.96672374,193.99,193.9,20.0]
[1735777047571,1.6456,193.97,193.85,8.1527]
[1735777047757,24.74393632,193.96,193.85,8.1527]
[1735777047939,24.74393632,193.96,193.85,1.6071]
[1735777049134,23.776884,193.92,193.8,6.5456]
[1735777049384,23.776884,193.9,193.8,6.5456]
[1735777049556,0.96720354,193.89,193.8,6.5456]
[1735777050241,23.776884,193.88,193.8,6.5456]
[1735777050581,0.96729487,193.87,193.8,6.0456]
[1735777051757,20.0,193.93,193.8,6.0456]
[1735777051964,0.96718259,193.92,193.8,6.0456]
[1735777052540,23.776884,193.91,193.8,6.0456]
[1735777052786,0.96718203,193.92,193.83,20.0]
[1735777053279,0.96718203,193.92,193.83,35.974105]
[1735777053867,23.776884,193.94,193.83,35.974105]
[1735777054076,0.96701526,193.93,193.83,35.974105]
[1735777055368,5.1559,193.96,193.83,35.974105]
[1735777055369,0.96700895,193.96,193.85,15.974105]
[1735777055554,0.96682845,193.99,193.86,15.974105]
[1735777056286,20.0,193.97,193.85,15.974105]
[1735777056587,23.776884,193.95,193.85,15.974105]
[1735777056784,0.96697332,193.94,193.83,20.0]
[1735777057000,0.96697332,193.94,193.81,15.974105]
[1735777057293,0.96697332,193.94,193.84,20.0]
[1735777057762,23.776884,193.92,193.84,20.0]
[1735777057958,0.9670864,193.91,193.84,20.0]
[1735777058165,0.9670864,193.91,193.81,15.974105]
[1735777058362,0.9670864,193.91,193.83,20.0]
[1735777058587,0.96713224,193.96,193.86,20.0]
[1735777058792,0.96713224,193.96,193.84,20.0]
[1735777058793,0.96713224,193.96,193.87,20.0]
[1735777058985,0.96680655,194.0,193.87,20.0]
[1735777060317,23.776884,193.99,193.86,15.974105]
[1735777060467,23.776884,193.97,193.88,20.0]
[1735777060665,0.96680801,193.96,193.88,20.0]
[1735777062228,0.96681164,194.0,193.89,37.508705]
[1735777062877,0.96681164,194.0,193.89,21.5346]
[1735777063486,0.96681164,194.0,193.9,23.776884]
[1735777066423,0.96681164,194.0,193.92,20.0]
[1735777066711,1.6049,194.01,193.93,23.776884]
[1735777066916,0.96652382,194.03,193.93,23.776884]
[1735777067490,0.96647355,194.05,193.93,23.776884]
[1735777067690,8.60874307,194.06,193.97,20.0]
[1735777067889,7.6423,194.06,193.98,20.0]
[1735777068820,0.96633549,194.09,193.98,20.0]
[1735777068821,20.0,194.08,193.98,20.0]
[1735777069013,0.96630742,194.07,193.98,23.776884]
[1735777069220,0.96630742,194.07,193.97,20.0]
[1735777073095,0.96630742,194.07,193.98,20.0]
[1735777073793,0.96630742,194.07,193.97,20.0]
[1735777074502,0.96630742,194.07,193.96,20.0]
[1735777074703,23.776884,194.06,193.9,28.866705]
[1735777074904,23.776884,194.06,193.89,8.0965]
[1735777074905,20.0,194.02,193.89,8.0965]
[1735777075101,20.0,194.02,193.9,23.776884]
[1735777075102,0.96669995,194.01,193.9,23.776884]
[1735777076400,0.96669995,194.01,193.91,20.0]
[1735777076632,0.96669995,194.01,193.86,15.974105]
[1735777076923,0.96669995,194.01,193.87,20.0]
[1735777076924,1.5922,193.98,193.87,20.0]
[1735777077130,0.96695452,193.97,193.85,23.776884]
[1735777077421,20.0,193.96,193.82,15.974105]
[1735777077621,0.96703614,193.95,193.82,15.974105]
[1735777078030,20.96703614,193.95,193.85,20.0]
[1735777079023,20.96703614,193.95,193.84,15.974105]
[1735777079333,20.96703614,193.95,193.83,15.974105]
[1735777079625,20.96703614,193.95,193.84,20.0]
[1735777080128,20.96703614,193.95,193.85,20.0]
[1735777080421,20.96703614,193.95,193.83,23.776884]
[1735777080629,20.96703614,193.95,193.79,15.974105]
[1735777080630,5.1562,193.94,193.79,15.974105]
[1735777080815,0.96719748,193.93,193.79,15.974105]
[1735777081016,7.8719,193.92,193.82,20.0]
[1735777081220,0.96726646,193.91,193.78,15.974105]
[1735777081713,0.96726646,193.91,193.79,39.750989]
[1735777081909,0.96726646,193.91,193.8,15.974105]
[1735777082867,0.96726646,193.91,193.82,35.974105]
[1735777083411,0.96726646,193.91,193.83,23.776884]
[1735777083712,7.8719,193.92,193.84,15.974105]
[1735777083913,7.8719,193.92,193.83,39.750989]
[1735777084119,0.96697522,193.91,193.82,35.974105]
[1735777084454,0.96697522,193.91,193.85,20.0]
[1735777084821,0.96697522,193.91,193.77,12.9018]
[1735777085024,0.96697522,193.91,193.77,15.974105]
[1735777085250,0.96697522,193.91,193.8,20.0]
[1735777085751,6.0284,193.88,193.76,8.11216647]
[1735777085953,20.0,193.85,193.76,8.11216647]
[1735777086254,23.776884,193.83,193.74,8.11216647]
[1735777086418,6.0284,193.8,193.74,8.11216647]
[1735777086619,0.96775645,193.79,193.74,8.11216647]
[1735777087150,0.96775645,193.79,193.71,20.0]
[1735777087453,20.0,193.75,193.68,8.11216647]
[1735777087622,0.96794085,193.74,193.68,8.11216647]
[1735777088127,0.96795544,193.75,193.68,8.11216647]
[1735777088537,23.776884,193.78,193.64,15.974105]
[1735777088744,0.96796422,193.77,193.64,15.974105]
[1735777089441,0.96796422,193.77,193.6,21.02506647]
[1735777089442,0.96796422,193.77,193.65,15.974105]
[1735777089649,0.96796422,193.77,193.64,15.974105]
[1735777091151,20.96796422,193.77,193.65,39.750989]
[1735777091453,20.96796422,193.77,193.66,15.974105]
[1735777091835,20.96796422,193.77,193.66,14.474105]
[1735777092042,0.96796422,193.77,193.67,15.974105]
[1735777092229,0.96775854,193.79,193.69,15.974105]
[1735777093130,0.96775854,193.79,193.71,20.0]
[1735777095860,0.96775854,193.79,193.65,15.974105]
[1735777096053,0.96775854,193.79,193.64,15.974105]
[1735777096231,23.776884,193.78,193.67,20.0]
[1735777096556,0.96796799,193.77,193.62,28.885605]
[1735777097259,0.96796799,193.77,193.65,20.0]
[1735777097557,23.776884,193.76,193.65,20.0]
[1735777097859,0.96803578,193.75,193.65,20.0]
[1735777100345,0.96795396,193.77,193.66,20.0]
[1735777100660,20.96795396,193.77,193.66,20.0]
[1735777103472,23.776884,193.76,193.65,20.0]
[1735777103636,0.9680473,193.75,193.65,20.0]
[1735777104644,0.9680473,193.75,193.66,20.0]
[1735777105348,0.9680473,193.75,193.65,48.883905]
[1735777105539,0.96785127,193.76,193.65,48.883905]
[1735777106559,0.96786682,193.79,193.69,20.0]
[1735777106758,0.96786682,193.79,193.67,12.9085]
[1735777107968,0.96786682,193.79,193.68,15.974105]
[1735777108267,0.96786682,193.79,193.67,28.882605]
[1735777109787,0.96786682,193.79,193.67,12.9085]
[1735777115483,0.96786682,193.79,193.68,23.776884]
[1735777119289,0.96786682,193.79,193.71,20.0]
[1735777120055,0.96786682,193.79,193.7,20.0]
[1735777120259,0.96786682,193.79,193.66,23.776884]
[1735777120558,0.96786682,193.79,193.67,20.0]
[1735777120758,20.0,193.77,193.67,20.0]
[1735777120985,0.96794333,193.76,193.68,23.776884]
[1735777121386,0.96779584,193.79,193.68,23.776884]
[1735777122096,0.96779584,193.79,193.66,23.776884]
[1735777122584,0.96779584,193.79,193.66,15.974105]
[1735777123382,0.96779584,193.79,193.69,20.0]
[1735777124286,0.96779584,193.79,193.7,20.0]
[1735777126671,0.96779584,193.79,193.71,23.776884]
[1735777127990,6.99608469,193.8,193.73,23.776884]
[1735777128192,6.0284,193.8,193.73,23.776884]
[1735777128599,6.0284,193.8,193.76,20.0]
[1735777130400,6.0284,193.8,193.77,23.776884]
[1735777130568,8.2033,193.85,193.77,23.776884]
[1735777132169,8.2033,193.85,193.77,39.750989]
[1735777132592,8.2033,193.85,193.77,23.776884]
[1735777133287,8.2033,193.85,193.77,39.750989]
[1735777133973,8.2033,193.85,193.8,20.0]
[1735777134301,8.2033,193.85,193.81,23.776884]
[1735777134500,0.96739739,193.89,193.81,23.776884]
[1735777134501,1.6377,193.89,193.81,23.776884]
[1735777134686,1.6377,193.89,193.83,23.776884]
[1735777135075,1.6377,193.89,193.86,20.0]
[1735777135281,8.2033,193.98,193.87,23.776884]
[1735777135601,0.96690425,193.97,193.87,23.776884]
[1735777138285,0.96690425,193.97,193.87,39.750989]
[1735777138490,0.96690425,193.97,193.87,23.776884]
[1735777139086,0.96690425,193.97,193.9,20.0]
[1735777139306,8.2033,193.98,193.91,23.776884]
[1735777139822,0.96672689,193.97,193.86,35.974105]
[1735777140307,0.96672689,193.97,193.9,20.0]
[1735777143794,0.96672689,193.97,193.85,15.974105]
[1735777144001,0.96672689,193.97,193.84,15.974105]
[1735777144415,0.96672689,193.97,193.88,20.0]
[1735777144624,0.96672689,193.97,193.89,23.776884]
[1735777147030,0.96672841,193.97,193.89,23.776884]
[1735777149119,8.2033,193.98,193.89,23.776884]
[1735777149324,0.96676623,194.02,193.91,15.974105]
[1735777149529,0.96676623,194.02,193.92,23.776884]
[1735777150024,2.60138272,194.03,193.92,23.776884]